bitfinex-derivatives/quotes_SOLF0:USTF0_20250202
["timestamp","ask_amount","ask_price","bid_price","bid_amount"]
[1738494104130,0.03527028,211.65,211.56,210.88678016]
[1738494104528,0.03527028,211.65,211.57,0.9453136]
[1738494108029,0.03527028,211.65,211.58,14.15]
[1738494108226,0.03527028,211.65,211.59,0.94522425]
[1738494113035,0.03527028,211.65,211.6,14.15]
[1738494118939,0.03527028,211.65,211.6,206.15]
[1738494120743,0.03527028,211.65,211.61,0.94513491]
[1738494124839,0.03527028,211.65,211.62,14.15]
[1738494125646,0.03527028,211.65,211.63,3.32]
[1738494126945,0.03527028,211.65,211.63,17.47]
[1738494129350,0.00517028,211.65,211.63,210.41504559]
[1738494130947,0.00517028,211.65,211.63,373.04362984]
[1738494134646,0.00517028,211.65,211.64,176.77858425]
[1738494134844,0.00517028,211.65,211.64,162.62858425]
[1738494135858,0.00517028,211.65,211.63,373.04362984]
[1738494136453,0.00517028,211.65,211.64,3.28]
[1738494137055,0.00517028,211.65,211.63,355.57362984]
[1738494137351,0.00517028,211.65,211.64,3.28]
[1738494141160,1.960027,211.65,211.64,3.28]
[1738494142556,1.960027,211.65,211.63,192.94504559]
[1738494142861,1.960027,211.65,211.64,3.26]
[1738494145164,0.00517028,211.65,211.64,17.43]
[1738494145360,1.5032,211.73,211.64,17.43]
[1738494145562,1.5032,211.73,211.64,219.59325605]
[1738494146264,1.5032,211.73,211.64,209.43]
[1738494146470,0.03099957,211.71,211.66,0.03189452]
[1738494147165,0.03099957,211.71,211.66,14.20189452]
[1738494147368,0.03099957,211.71,211.66,176.83047877]
[1738494148762,0.03099957,211.71,211.67,14.17]
[1738494149765,1.5386,211.96,211.66,14.20189452]
[1738494149972,3.0201,211.95,211.7,14.17]
[1738494150272,3.0201,211.95,211.7,220.33]
[1738494150566,3.0201,211.95,211.72,28.33]
[1738494150870,3.0201,211.95,211.74,14.17]
[1738494151061,0.03304813,211.86,211.81,0.0336885]
[1738494151466,0.03304813,211.86,211.76,14.17]
[1738494151667,0.03304813,211.86,211.81,0.03466372]
[1738494159375,0.03304813,211.86,211.8,3.24]
[1738494160778,0.03304813,211.86,211.81,0.0324952]
[1738494162674,0.03304813,211.86,211.82,3.24]
[1738494164082,0.03304813,211.86,211.81,0.0324952]
[1738494164274,0.03304813,211.86,211.8,0.9244952]
[1738494174385,0.03304813,211.86,211.8,15.0944952]
[1738494175592,1.5386,211.96,211.8,15.0944952]
[1738494175792,1.5386,211.96,211.81,0.94424248]
[1738494176694,0.03500936,211.91,211.86,0.03304813]
[1738494180586,0.03500936,211.91,211.87,3.2]
[1738494183290,0.03500936,211.91,211.86,0.03304813]
[1738494183497,0.03500936,211.91,211.84,0.39996069]
[1738494183792,0.03500936,211.91,211.81,0.94424248]
[1738494184400,0.03500936,211.91,211.81,15.11424248]
[1738494185394,0.03500936,211.91,211.81,207.11424248]
[1738494185898,0.03500936,211.91,211.81,221.27424248]
[1738494189098,2.9152,212.13,211.82,0.86675009]
[1738494189398,2.9152,212.13,211.83,191.90273758]
[1738494189599,2.9152,212.13,211.85,28.33]
[1738494189898,2.9152,212.13,211.86,0.94401963]
[1738494190099,0.03338229,212.01,211.97,0.03392655]
[1738494190293,0.03338229,212.01,211.97,3.2]
[1738494190499,0.03213738,212.01,211.97,3.23030208]
[1738494191197,2.9152,212.13,211.97,3.23030208]
[1738494191401,2.9152,212.13,211.97,3.2]
[1738494192203,2.9152,212.13,211.97,17.37]
[1738494192599,0.03134755,212.07,212.03,0.03590671]
[1738494192799,0.03134755,212.07,212.03,93.43590671]
[1738494203710,0.03134755,212.07,212.03,96.61590671]
[1738494204413,0.03134755,212.07,212.03,0.03590671]
[1738494204712,0.03134755,212.07,211.96,93.36]
[1738494205013,2.9152,212.13,211.98,3.2]
[1738494205813,0.03057437,212.08,212.03,0.03124003]
[1738494206115,0.03057437,212.08,211.98,3.2]
[1738494209015,0.03057437,212.08,211.96,93.36]
[1738494210217,0.03057437,212.08,211.92,3.18]
[1738494210413,2.9152,212.13,211.92,3.18]
[1738494210617,0.03194652,212.02,211.92,3.18]
[1738494216122,0.03194652,212.02,211.91,93.36]
[1738494217019,0.03194652,212.02,211.91,96.54]
[1738494217930,0.03194652,212.02,211.91,93.36]
[1738494218125,0.03194652,212.02,211.91,96.52]
[1738494232035,0.03194652,212.02,211.92,3.0212]
[1738494234340,0.03194652,212.02,211.93,0.94370782]
[1738494234640,2.9152,212.13,211.94,14.17]
[1738494234936,2.9152,212.13,211.93,0.94370782]
[1738494235839,0.03162599,212.05,212.01,0.03194652]
[1738494236232,0.03162599,212.05,212.02,3.14]
[1738494237536,1.4759,212.13,212.02,3.14]
[1738494238639,0.03418618,212.1,212.05,0.03513371]
[1738494251242,0.03418618,212.1,212.05,1.57453371]
[1738494251445,0.03418618,212.1,212.05,0.03513371]
[1738494252649,0.03418618,212.1,212.05,1.55143371]
[1738494253046,1.5034,212.24,212.05,1.55143371]
[1738494253346,1.5018,212.23,212.05,2.9927]
[1738494254349,0.03449499,212.16,212.12,0.03143762]
[1738494256153,0.03449499,212.16,212.0,3.2]
[1738494256346,195.5018,212.23,212.0,3.2]
[1738494256647,1.5018,212.23,212.0,3.2]
[1738494257355,1.5018,212.23,212.09,0.03163964]
[1738494257356,0.03365772,212.14,212.09,0.03163964]
[1738494257647,0.03365772,212.14,212.0,3.2]
[1738494257852,1.5018,212.23,212.09,0.03445535]
[1738494258151,1.5018,212.23,212.0,3.2]
[1738494258349,1.5018,212.23,212.14,0.03171136]
[1738494258350,0.02980392,212.18,212.14,0.03171136]
[1738494258545,1.5018,212.23,212.14,0.03467763]
[1738494258751,0.03010904,212.18,212.14,0.03467763]
[1738494259256,0.03010904,212.18,212.0,3.2]
[1738494259453,1.5018,212.23,212.0,3.2]
[1738494260452,0.03318266,212.14,212.09,0.03126269]
[1738494260755,0.03318266,212.14,212.0,3.2]
[1738494260957,1.5018,212.23,212.09,0.03164344]
[1738494261254,1.5018,212.23,212.0,3.2]
[1738494261455,0.031681,212.18,212.14,0.03164344]
[1738494261754,0.03169895,212.18,212.14,0.03164344]
[1738494262757,0.03169895,212.18,211.95,1.4674]
[1738494263054,1.5018,212.23,211.96,3.18]
[1738494263855,0.03061687,212.12,211.96,3.18]
[1738494264055,1.5018,212.23,211.96,3.18]
[1738494264255,0.03032068,212.12,211.96,3.18]
[1738494264554,1.5018,212.23,211.96,3.18]
[1738494265055,0.03041741,212.12,211.96,3.18]
[1738494265258,1.5018,212.23,211.96,3.18]
[1738494265554,0.03546619,212.06,211.96,3.18]
[1738494265754,1.5018,212.23,211.96,3.18]
[1738494265955,0.03321434,212.03,211.96,3.18]
[1738494266254,0.03520716,212.02,211.96,3.18]
[1738494266554,1.5018,212.23,211.95,1.4674]
[1738494266753,0.03391476,212.01,211.96,3.18]
[1738494266954,0.0314803,212.01,211.96,3.18]
[1738494267653,0.0314803,212.01,211.95,1.4674]
[1738494267848,0.0314803,212.01,211.96,3.18]
[1738494270358,0.0314803,212.01,211.93,0.94370782]
[1738494270749,0.0314803,212.01,211.91,255.98858425]
[1738494271651,0.0314803,212.01,211.91,93.36]
[1738494273158,0.0314803,212.01,211.91,96.58]
[1738494275059,0.0314803,212.01,211.91,93.36]
[1738494277756,0.0314803,212.01,211.79,13.08624843]
[1738494277954,3.2,212.05,211.8,3.2]
[1738494278159,0.03607113,211.92,211.8,3.2]
[1738494287561,0.03607113,211.92,211.79,2.86]
[1738494287562,0.03607113,211.92,211.81,3.18]
[1738494287761,194.0,212.03,211.81,3.18]
[1738494287961,0.03021376,211.89,211.81,3.18]
[1738494288261,194.0,212.03,211.81,3.18]
[1738494288458,4.527,212.04,211.81,3.18]
[1738494288762,0.03557413,211.94,211.81,3.18]
[1738494288956,194.0,212.03,211.81,3.18]
[1738494289163,0.03312939,211.9,211.81,3.18]
[1738494289362,4.527,212.04,211.81,3.18]
[1738494289560,0.0359669,211.88,211.81,3.18]
[1738494289761,194.0,212.03,211.81,3.18]
[1738494289961,0.03511361,211.87,211.81,3.18]
[1738494290161,194.0,212.03,211.81,3.18]
[1738494290456,4.527,212.04,211.81,3.18]
[1738494290662,0.03257759,211.94,211.81,3.18]
[1738494291065,194.0,212.03,211.81,3.18]
[1738494291267,0.03126936,211.9,211.81,3.18]
[1738494291468,194.0,212.03,211.81,3.18]
[1738494291661,0.03586996,211.88,211.81,3.18]
[1738494291968,194.0,212.03,211.81,3.18]
[1738494292263,4.527,212.04,211.81,3.18]
[1738494292467,0.03376665,211.94,211.81,3.18]
[1738494292667,4.527,212.04,211.81,3.18]
[1738494292860,0.03072135,211.9,211.81,3.18]
[1738494293067,4.527,212.04,211.81,3.18]
[1738494293365,0.03242383,211.88,211.81,3.18]
[1738494293566,4.527,212.04,211.81,3.18]
[1738494294164,0.03588647,211.95,211.81,3.18]
[1738494294370,4.527,212.04,211.79,2.86]
[1738494294570,0.03319985,211.9,211.8,3.16]
[1738494295180,0.03319985,211.9,211.79,1.4426]
[1738494296079,0.03319985,211.9,211.78,139.114812]
[1738494296377,0.03319985,211.9,211.78,142.294812]
[1738494302080,0.03319985,211.9,211.78,139.114812]
[1738494307491,0.03319985,211.9,211.78,93.38]
[1738494321004,0.03319985,211.9,211.79,3.0294]
[1738494321502,0.03319985,211.9,211.8,0.0995]
[1738494328405,0.03319985,211.9,211.79,3.0294]
[1738494342324,1.4142,212.01,211.79,3.0294]
[1738494342620,1.5004,212.02,211.8,0.86699405]
[1738494343519,0.03480978,211.93,211.89,0.03021023]
[1738494343721,1.4434,212.06,211.89,3.14]
[1738494343920,1.4434,212.06,211.9,1.4804]
[1738494344819,0.03106782,212.0,211.96,0.0360921]
[1738494347618,194.0,212.2,211.96,0.0360921]
[1738494347924,1.4368,212.16,211.9,1.5808]
[1738494348225,1.4368,212.16,211.9,2.52464143]
[1738494348815,0.03077647,212.05,212.01,0.031109]
[1738494349020,1.4368,212.16,211.99,3.16]
[1738494349225,0.03107215,212.05,212.01,0.03490892]
[1738494349418,0.03107215,212.05,212.0,1.4117]
[1738494349624,1.4368,212.16,212.0,1.44692461]
[1738494349825,1.4368,212.16,212.0,1.4117]
[1738494350022,0.03148084,212.1,212.0,1.4117]
[1738494350323,0.03148084,212.1,212.06,0.03037585]
[1738494361625,0.03148084,212.1,211.91,3.1357]
[1738494361825,208.17,212.14,211.91,3.1357]
[1738494362131,208.17,212.14,211.91,3.0391]
[1738494362726,0.03369734,212.05,212.0,0.03275164]
[1738494362923,0.03369734,212.05,211.91,1.5595]
[1738494363125,208.17,212.14,212.0,0.03535122]
[1738494363322,194.0,212.13,211.91,1.5595]
[1738494363528,194.0,212.12,212.05,0.0354499]
[1738494363730,194.03328756,212.11,211.9,0.94384143]
[1738494363932,194.0,212.1,211.9,0.94384143]
[1738494364833,0.03456405,212.02,211.98,0.03319691]
[1738494365133,0.03456405,212.02,211.9,0.94384143]
[1738494367635,0.03456405,212.02,211.85,3.14]
[1738494367832,194.0,212.1,211.85,3.14]
[1738494368035,0.03098948,212.0,211.85,3.14]
[1738494368230,1.4151,212.11,211.85,3.14]
[1738494368533,0.03109255,211.95,211.85,3.14]
[1738494368733,194.0,212.1,211.85,3.14]
[1738494369029,194.0,212.09,211.85,3.14]
[1738494369227,0.03388978,212.0,211.85,3.14]
[1738494369531,194.0,212.09,211.85,3.14]
[1738494369733,0.03516041,211.95,211.85,3.14]
[1738494376033,1.5059,212.07,211.85,3.14]
[1738494377133,0.03585146,211.98,211.94,0.03307431]
[1738494377438,1.5059,212.07,211.85,3.14]
[1738494377638,0.03229816,211.98,211.94,0.0352152]
[1738494377837,1.5059,212.07,211.85,3.14]
[1738494378042,0.03564156,211.98,211.94,0.0352152]
[1738494378238,0.03564156,211.98,211.85,3.14]
[1738494378440,0.0334742,211.94,211.89,0.0352152]
[1738494378641,1.5059,212.07,211.85,3.14]
[1738494378840,0.03205876,211.94,211.89,0.02994716]
[1738494379040,1.5059,212.07,211.85,3.14]
[1738494379245,0.03462362,211.94,211.89,0.03454438]
[1738494379541,1.5059,212.07,211.89,0.03108934]
[1738494379743,0.03378728,211.94,211.85,3.14]
[1738494380042,1.5059,212.07,211.96,0.03127739]
[1738494380242,1.5059,212.07,211.96,3.12]
[1738494380442,0.03494694,212.04,211.99,0.0352152]
[1738494392351,0.03494694,212.04,211.99,10.0352152]
[1738494403469,0.03494694,212.04,211.86,6.1534]
[1738494403672,0.03494694,212.04,211.99,3.0]
[1738494403875,14.17,212.1,211.86,3.0534]
[1738494404166,14.17,212.08,211.86,3.0534]
[1738494404574,0.03037841,211.99,211.86,3.0534]
[1738494404873,14.17,212.06,211.81,3.1]
[1738494405069,14.17,212.06,211.8,1.5245]
[1738494405271,0.03410168,211.95,211.8,4.6245]
[1738494405471,0.03410168,211.95,211.8,1.5245]
[1738494405669,17.27,212.03,211.8,1.5245]
[1738494405866,0.03461154,211.9,211.8,1.5245]
[1738494407971,0.03461154,211.9,211.8,4.6245]
[1738494418677,0.03461154,211.9,211.8,1.5245]
[1738494418977,0.03461154,211.9,211.81,3.08]
[1738494420382,0.03461154,211.9,211.8,1.5245]
[1738494420784,0.03461154,211.9,211.76,45.74200408]
[1738494426484,0.03461154,211.9,211.73,6.0608]
[1738494430792,0.03461154,211.9,211.74,1.5532]
[1738494432382,0.03461154,211.9,211.73,6.0608]
[1738494433087,0.03461154,211.9,211.73,1.4976]
[1738494433288,0.03461154,211.9,211.67,3.08]
[1738494433690,0.03461154,211.9,211.64,3.0512]
[1738494433890,0.03461154,211.9,211.68,3.08]
[1738494434094,3.08,211.89,211.64,3.0512]
[1738494434294,3.08,211.89,211.65,3.08]
[1738494434295,2.9062,211.88,211.65,3.08]
[1738494434496,0.03106756,211.79,211.65,3.08]
[1738494434692,4.4266,211.88,211.65,3.08]
[1738494434891,0.0342908,211.74,211.64,3.0512]
[1738494435192,18.5966,211.88,211.64,3.0512]
[1738494435593,0.0335448,211.78,211.64,3.0512]
[1738494435989,0.03273182,211.73,211.64,3.0512]
[1738494436395,18.5966,211.88,211.64,3.0512]
[1738494436693,208.17,211.87,211.64,3.0512]
[1738494436889,0.03188222,211.78,211.64,3.0512]
[1738494437293,208.17,211.87,211.64,3.0512]
[1738494437490,0.03295718,211.73,211.64,3.0512]
[1738494437793,208.17,211.86,211.64,3.0512]
[1738494437994,0.03388705,211.71,211.64,3.0512]
[1738494438192,208.17,211.85,211.64,3.0512]
[1738494438400,0.03329066,211.7,211.64,3.0512]
[1738494438585,194.0,211.84,211.64,1.5519]
[1738494438786,0.03281254,211.69,211.64,1.5519]
[1738494439091,208.17,211.84,211.64,1.5519]
[1738494439292,0.03488187,211.69,211.64,1.5519]
[1738494439592,208.17,211.84,211.64,1.5519]
[1738494439792,0.03584571,211.69,211.64,1.5519]
[1738494439993,208.17,211.84,211.64,1.5519]
[1738494440196,0.03541517,211.69,211.64,1.5519]
[1738494440496,0.03576815,211.69,211.64,1.5519]
[1738494443290,0.03576815,211.69,211.61,1.5332]
[1738494444996,0.03576815,211.69,211.53,93.52]
[1738494445297,18.6346,211.78,211.53,93.52]
[1738494445298,14.17,211.76,211.53,93.52]
[1738494445498,0.03183027,211.63,211.53,93.52]
[1738494445799,14.17,211.74,211.53,93.52]
[1738494445992,0.03530764,211.6,211.53,93.52]
[1738494446195,14.17,211.74,211.53,93.52]
[1738494446399,0.03217289,211.59,211.53,93.52]
[1738494446697,14.17,211.74,211.53,93.52]
[1738494446902,0.03194468,211.58,211.53,93.52]
[1738494447090,14.17,211.74,211.53,93.52]
[1738494447495,0.03164858,211.58,211.53,93.52]
[1738494447697,14.17,211.74,211.53,93.52]
[1738494447896,0.03064134,211.58,211.53,93.52]
[1738494448298,14.17,211.74,211.53,93.52]
[1738494448498,0.03506136,211.58,211.53,93.52]
[1738494448700,14.17,211.74,211.53,93.52]
[1738494448999,0.0298585,211.58,211.53,93.52]
[1738494449398,14.17,211.74,211.53,93.52]
[1738494449594,0.03330847,211.58,211.53,93.52]
[1738494449893,14.17,211.74,211.53,93.52]
[1738494450097,0.0362615,211.58,211.53,93.52]
[1738494450295,14.17,211.74,211.53,93.52]
[1738494450499,0.0328721,211.58,211.53,93.52]
[1738494450701,194.0,211.75,211.53,93.52]
[1738494450902,0.03343848,211.58,211.53,93.52]
[1738494451097,194.0,211.75,211.53,93.52]
[1738494451304,21.7246,211.78,211.53,93.52]
[1738494452404,0.03392868,211.68,211.63,0.02998356]
[1738494452803,21.7246,211.78,211.53,93.52]
[1738494452999,0.03628605,211.68,211.53,93.52]
[1738494453299,21.7246,211.78,211.63,0.03343848]
[1738494453507,0.0338439,211.63,211.53,93.52]
[1738494453809,18.6446,211.78,211.68,0.03182836]
[1738494454010,4.4646,211.78,211.53,93.52]
[1738494454908,0.0321989,211.68,211.63,0.03341357]
[1738494455309,4.4646,211.78,211.59,3.08]
[1738494455508,0.03400949,211.68,211.63,0.03318786]
[1738494455806,4.4646,211.78,211.6,2.9892]
[1738494456010,0.03541604,211.68,211.63,0.03270726]
[1738494456403,4.4646,211.78,211.6,2.9892]
[1738494456604,0.03088567,211.68,211.63,0.03216791]
[1738494456806,1.4232,211.78,211.6,2.9892]
[1738494457415,1.4596,211.84,211.6,2.9892]
[1738494458110,0.03158571,211.74,211.7,0.03332199]
[1738494458311,3.08,211.89,211.7,0.03332199]
[1738494458511,3.08,211.89,211.6,2.9892]
[1738494459415,0.03319171,211.77,211.72,0.03158714]
[1738494459610,0.03319171,211.77,211.6,2.9892]
[1738494459812,1.487,211.9,211.6,2.9892]
[1738494460012,0.03305654,211.77,211.72,0.03230603]
[1738494460409,1.487,211.9,211.69,3.08]
[1738494460615,0.03288112,211.77,211.72,0.03185049]
[1738494460817,1.487,211.9,211.7,2.9893]
[1738494461017,0.03497642,211.77,211.72,0.03425571]
[1738494461220,1.487,211.9,211.7,2.9893]
[1738494461414,1.487,211.9,211.72,0.03159589]
[1738494461609,0.03024662,211.77,211.72,0.03159589]
[1738494461817,1.487,211.9,211.7,2.9893]
[1738494462017,0.03036885,211.77,211.72,0.03491087]
[1738494462216,1.487,211.9,211.7,2.9893]
[1738494462416,0.03340067,211.77,211.72,0.03141542]
[1738494462618,1.487,211.9,211.7,2.9893]
[1738494462816,0.03028076,211.77,211.72,0.03571868]
[1738494463017,1.487,211.9,211.7,2.9893]
[1738494463216,0.03141608,211.77,211.72,0.03322891]
[1738494463420,1.487,211.9,211.71,1.5415]
[1738494464515,0.03503868,211.83,211.78,0.03072933]
[1738494469929,3.08,212.01,211.78,0.03072933]
[1738494470126,1.4266,211.97,211.75,93.5]
[1738494470929,0.03125271,211.88,211.84,0.03139174]
[1738494471130,1.4266,211.97,211.75,93.5]
[1738494471427,0.03552737,211.88,211.84,0.0300854]
[1738494471820,2.9284,211.97,211.84,0.03269511]
[1738494472125,2.9284,211.97,211.75,93.5]
[1738494472326,0.03275777,211.93,211.88,0.03491542]
[1738494472523,2.9284,211.97,211.88,0.03491542]
[1738494472829,0.03166687,211.93,211.88,0.03491542]
[1738494482231,3.08,211.92,211.88,0.03491542]
[1738494482536,3.08,211.92,211.75,93.5]
[1738494483131,17.26,211.92,211.75,93.5]
[1738494483426,0.03141109,211.86,211.75,93.5]
[1738494483630,0.03141109,211.86,211.81,0.03522053]
[1738494484030,0.03141109,211.86,211.75,93.5]
[1738494485133,0.03141109,211.86,211.78,0.03200047]
[1738494497149,0.03141109,211.86,211.62,4.4139]
[1738494497345,14.18,211.87,211.62,4.4139]
[1738494497547,14.18,211.85,211.62,4.4139]
[1738494497748,23.54983531,211.85,211.62,4.4139]
[1738494498245,0.03634214,211.76,211.71,0.03403446]
[1738494498446,0.03634214,211.76,211.62,4.4139]
[1738494498749,1.4235,211.77,211.58,93.5]
[1738494498946,0.03497307,211.71,211.58,93.5]
[1738494499247,194.0,211.76,211.58,93.5]
[1738494499648,203.38348922,211.75,211.56,1.4579]
[1738494499845,9.3827796,211.74,211.56,1.4579]
[1738494500143,0.03442812,211.68,211.63,0.03086624]
[1738494500355,3.08,211.67,211.51,2.968]
[1738494501445,3.08,211.67,211.57,0.02697822]
[1738494501446,0.03200946,211.61,211.57,0.02697822]
[1738494501646,0.03200946,211.61,211.46,1.4579]
[1738494502044,1.5314,211.66,211.46,1.4579]
[1738494502948,0.03238959,211.58,211.46,1.4579]
[1738494505955,3.08,211.57,211.46,1.4579]
[1738494506246,3.08,211.57,211.43,1.5249]
[1738494506645,0.03331615,211.54,211.43,1.5249]
[1738494507250,0.03331615,211.54,211.42,93.52]
[1738494508353,0.03331615,211.54,211.37,1.4752]
[1738494508553,1.50631615,211.54,211.26,139.43254326]
[1738494508853,1.473,211.54,211.29,2.9196]
[1738494509154,0.03280293,211.42,211.29,2.9196]
[1738494509452,1.473,211.54,211.29,2.9196]
[1738494509652,0.0300212,211.38,211.29,2.9196]
[1738494509951,1.473,211.54,211.29,2.9196]
[1738494510349,0.03200399,211.36,211.29,2.9196]
[1738494510550,1.473,211.54,211.29,2.9196]
[1738494510743,0.0342857,211.35,211.29,2.9196]
[1738494511153,194.0,211.53,211.29,2.9196]
[1738494511353,0.03604323,211.34,211.29,2.9196]
[1738494511550,194.0,211.53,211.29,1.4752]
[1738494511854,0.0331684,211.34,211.29,1.4752]
[1738494512146,194.0,211.53,211.29,1.4752]
[1738494512352,0.03187102,211.34,211.29,1.4752]
[1738494512553,3.08,211.47,211.29,1.4752]
[1738494512857,0.0358406,211.34,211.29,1.4752]
[1738494513054,1.4484,211.46,211.3,1.4845]
[1738494513251,0.03286129,211.34,211.3,1.4845]
[1738494513449,1.4484,211.46,211.3,1.4845]
[1738494513954,0.03484986,211.4,211.3,1.4845]
[1738494515757,0.03484986,211.4,211.27,1.4867]
[1738494516154,1.526,211.45,211.27,1.4867]
[1738494516351,0.03409227,211.36,211.27,1.4867]
[1738494518650,0.03409227,211.36,211.28,1.5052]
[1738494523761,1.526,211.45,211.28,1.5052]
[1738494524059,1.4484,211.46,211.28,1.5052]
[1738494524963,0.03290163,211.39,211.35,0.03022148]
[1738494544271,0.03290163,211.39,211.27,1.4867]
[1738494544272,3.11290163,211.39,211.08,93.7]
[1738494544572,2.96,211.38,211.19,4.5425]
[1738494545166,17.14,211.38,211.25,162.62858425]
[1738494545370,2.96,211.38,211.25,162.62858425]
[1738494545665,0.03503413,211.34,211.25,162.62858425]
[1738494547274,0.03503413,211.34,211.22,162.62858425]
[1738494548173,0.03503413,211.34,211.23,162.62858425]
[1738494548473,1.4819,211.38,211.23,162.62858425]
[1738494548675,0.0356072,211.31,211.23,162.62858425]
[1738494551079,0.0356072,211.31,211.2,30.72021679]
[1738494553479,3.08,211.41,211.2,30.72021679]
[1738494553977,6.155,211.43,211.2,30.72021679]
[1738494554678,0.03579703,211.34,211.29,0.03373935]
[1738494554980,0.03579703,211.34,211.2,30.72021679]
[1738494555177,6.155,211.43,211.29,0.03543892]
[1738494555375,6.155,211.43,211.2,30.72021679]
[1738494555580,0.03315773,211.38,211.34,0.03460048]
[1738494555878,1.5513,211.43,211.34,0.03166279]
[1738494556081,0.03602525,211.38,211.34,0.03166279]
[1738494562485,0.03602525,211.38,211.19,199.09016197]
[1738494562690,3.08,211.37,211.19,199.09016197]
[1738494562890,17.26,211.37,211.19,199.09016197]
[1738494563792,0.03172682,211.3,211.19,199.09016197]
[1738494566694,3.08,211.37,211.19,199.09016197]
[1738494566695,18.8143,211.44,211.19,4.5425]
[1738494567800,0.03160219,211.33,211.29,0.03085189]
[1738494567991,4.6343,211.44,211.19,4.5425]
[1738494568192,0.03378022,211.33,211.29,0.03604194]
[1738494568399,4.6343,211.44,211.19,4.5425]
[1738494568694,0.03244381,211.33,211.29,0.03121088]
[1738494568898,18.8143,211.44,211.19,4.5425]
[1738494569198,0.03540018,211.33,211.29,0.03412819]
[1738494569409,18.8143,211.44,211.19,4.5425]
[1738494569596,0.03591446,211.33,211.29,0.03612201]
[1738494569800,18.8143,211.44,211.19,4.5425]
[1738494570095,0.03551224,211.33,211.29,0.03203112]
[1738494570298,18.8143,211.44,211.19,4.5425]
[1738494570494,0.03169135,211.33,211.29,0.03375049]
[1738494570695,18.8143,211.44,211.19,4.5425]
[1738494570998,0.02999823,211.33,211.29,0.03438828]
[1738494571201,18.8143,211.44,211.19,4.5425]
[1738494571396,0.03061484,211.33,211.29,0.03640492]
[1738494571699,17.2123,211.43,211.19,4.5425]
[1738494571896,0.03039003,211.33,211.29,0.03551927]
[1738494572199,17.2123,211.43,211.19,4.5425]
[1738494572396,0.03470984,211.33,211.29,0.03077764]
[1738494572595,17.2123,211.43,211.19,4.5425]
[1738494572796,0.03385532,211.33,211.29,0.03132261]
[1738494572993,17.2123,211.43,211.19,4.5425]
[1738494573198,0.03633538,211.33,211.29,0.03191486]
[1738494573497,17.2123,211.43,211.19,4.5425]
[1738494573694,0.03623025,211.33,211.29,0.03181214]
[1738494573891,17.2123,211.43,211.19,4.5425]
[1738494574092,0.03243382,211.33,211.29,0.03607478]
[1738494574296,0.03243382,211.33,211.19,4.5425]
[1738494574494,17.2123,211.43,211.29,0.03496595]
[1738494574714,17.2123,211.43,211.19,4.5425]
[1738494574715,0.03090105,211.38,211.19,4.5425]
[1738494575001,17.2123,211.43,211.34,0.03128147]
[1738494575301,17.2123,211.43,211.19,4.5425]
[1738494575502,211.2123,211.43,211.19,4.5425]
[1738494575704,14.18,211.41,211.19,4.5425]
[1738494576705,0.03165078,211.32,211.19,4.5425]
[1738494576904,14.18,211.41,211.19,4.5425]
[1738494577202,0.03594031,211.28,211.19,4.5425]
[1738494577404,0.03594031,211.28,211.19,1.5332]
[1738494581001,0.03594031,211.28,211.15,1.5499]
[1738494581197,2.8664,211.33,211.15,1.5499]
[1738494581404,0.03399861,211.24,211.15,1.5499]
[1738494589317,0.03399861,211.24,211.11,1.4257]
[1738494589619,18.5838,211.33,211.11,1.4257]
[1738494589809,0.03628215,211.2,211.11,1.4257]
[1738494595825,1.4589,211.3,211.11,1.4257]
[1738494597123,0.02984568,211.23,211.18,0.03131313]
[1738494605428,14.20984568,211.23,211.18,0.03131313]
[1738494605632,1.4655,211.22,211.18,0.03131313]
[1738494605932,17.1419,211.22,211.18,0.03131313]
[1738494606729,17.1419,211.22,211.09,1.5669]